[Event "December 5 Early 2023"]
[Site "https://www.chess.com"]
[Date "2023.12.05"]
[Round "1"]
[White "Filipovic, Slobodan J"]
[Black "KhalilMousavi98"]
[Result "0-1"]
[Board "88"]
[TimeControl "180+1"]
[WhiteFideId "939633"]
[WhiteElo "2442"]
[BlackElo "2775"]
[WhiteTeam "SRB"]
[WhiteClock "0:00:19"]
[BlackClock "0:00:22"]

1. c4 {[%clk 0:03:00]}  c5 {[%clk 0:02:58]} 2. Nc3 {[%clk 0:03:00]}  Nc6 {[%clk 0:02:58]} 3. g3 {[%clk 0:03:01]}  g6 {[%clk 0:02:58]} 4. Bg2 {[%clk 0:03:01]}  Bg7 {[%clk 0:02:59]} 5. d3 {[%clk 0:03:02]}  e5 {[%clk 0:02:58]} 6. h4 {[%clk 0:03:00]}  h6 {[%clk 0:02:58]} 7. h5 {[%clk 0:03:00]}  g5 {[%clk 0:02:58]} 8. f4 {[%clk 0:03:00]}  gxf4 {[%clk 0:02:53]} 9. gxf4 {[%clk 0:03:00]}  d6 {[%clk 0:02:53]} 10. Nf3 {[%clk 0:02:59]}  Bg4 {[%clk 0:02:50]} 11. Qb3 {[%clk 0:02:33]}  Rb8 {[%clk 0:02:45]} 12. Rg1 {[%clk 0:02:28]}  Bxh5 {[%clk 0:02:37]} 13. fxe5 {[%clk 0:02:24]}  Nxe5 {[%clk 0:02:32]} 14. Bf4 {[%clk 0:02:11]}  Ne7 {[%clk 0:02:09]} 15. Nxe5 {[%clk 0:02:04]}  dxe5 {[%clk 0:02:09]} 16. Bxb7 {[%clk 0:01:46]}  Ng6 {[%clk 0:01:51]} 17. Qb5+ {[%clk 0:01:22]}  Kf8 {[%clk 0:01:51]} 18. Qxc5+ {[%clk 0:01:22]}  Kg8 {[%clk 0:01:51]} 19. Bxe5 {[%clk 0:01:18]}  Rxb7 {[%clk 0:01:39]} 20. Bxg7 {[%clk 0:01:17]}  Qh4+ {[%clk 0:01:38]} 21. Kd2 {[%clk 0:01:01]}  Kxg7 {[%clk 0:01:33]} 22. Kc2 {[%clk 0:00:48]}  Rhb8 {[%clk 0:01:27]} 23. b3 {[%clk 0:00:47]}  Bxe2 {[%clk 0:00:31]} 24. Nxe2 {[%clk 0:00:43]}  Qh2 {[%clk 0:00:27]} 25. Rae1 {[%clk 0:00:35]}  Re8 {[%clk 0:00:25]} 26. Kd2 {[%clk 0:00:32]}  Rbe7 {[%clk 0:00:24]} 27. Qd4+ {[%clk 0:00:31]}  Kh7 {[%clk 0:00:25]} 28. Qg4 {[%clk 0:00:29]}  Rxe2+ {[%clk 0:00:22]} 29. Rxe2 {[%clk 0:00:28]}  Rxe2+ {[%clk 0:00:22]} 30. Qxe2 {[%clk 0:00:28]}  Qxg1 {[%clk 0:00:23]} 31. Kc2 {[%clk 0:00:22]}  Qg5 {[%clk 0:00:21]} 32. Qe4 {[%clk 0:00:20]}  h5 {[%clk 0:00:21]} 33. b4 {[%clk 0:00:19]}  h4 {[%clk 0:00:22]} 34. c5 {[%clk 0:00:19]}  h3 {[%clk 0:00:22]} 35. c6 {[%clk 0:00:19]}  Qg2+ {[%clk 0:00:22]} 36. Kc3 {[%clk 0:00:17]}  Qxe4 {[%clk 0:00:22]} 37. dxe4 {[%clk 0:00:18]}  h2 {[%clk 0:00:22]} 38. c7 {[%clk 0:00:18]}  Ne7 {[%clk 0:00:23]} 39. c8=Q {[%clk 0:00:18]}  Nxc8 {[%clk 0:00:22]} 40. e5 {[%clk 0:00:18]}  h1=Q {[%clk 0:00:23]} 41. e6 {[%clk 0:00:19]}  Qc1+ {[%clk 0:00:23]} 42. Kd4 {[%clk 0:00:19]}  fxe6 {[%clk 0:00:22]} 43. b5 {[%clk 0:00:19]}  Kg6 {[%clk 0:00:23]} 44. a4 {[%clk 0:00:19]}  Kf5 {[%clk 0:00:23]} 45. a5 {[%clk 0:00:19]}  e5+ {[%clk 0:00:23]} 46. Kd5 {[%clk 0:00:19]}  Qc7 {[%clk 0:00:21]} 47. b6 {[%clk 0:00:19]}  Ne7# {[%clk 0:00:22]} 0-1

[Event "December 5 Early 2023"]
[Site "https://www.chess.com"]
[Date "2023.12.05"]
[Round "1"]
[White "Starozhilov, Leonid"]
[Black "Mickiewicz, Piotr"]
[Result "1-0"]
[Board "89"]
[TimeControl "180+1"]
[WhiteFideId "14106752"]
[BlackFideId "1114891"]
[WhiteElo "2764"]
[BlackElo "2441"]
[WhiteTeam "UKR"]
[BlackTeam "POL"]
[WhiteClock "0:00:05"]
[BlackClock "0:00:01"]

1. e4 {[%clk 0:03:00]}  c5 {[%clk 0:02:32]} 2. Nf3 {[%clk 0:02:59]}  Nc6 {[%clk 0:02:32]} 3. d4 {[%clk 0:02:58]}  cxd4 {[%clk 0:02:31]} 4. Nxd4 {[%clk 0:02:59]}  g6 {[%clk 0:02:31]} 5. c4 {[%clk 0:02:59]}  Nf6 {[%clk 0:02:29]} 6. Nc3 {[%clk 0:02:59]}  d6 {[%clk 0:02:29]} 7. Be2 {[%clk 0:02:58]}  Nxd4 {[%clk 0:02:30]} 8. Qxd4 {[%clk 0:02:58]}  Bg7 {[%clk 0:02:29]} 9. Be3 {[%clk 0:02:59]}  O-O {[%clk 0:02:29]} 10. Qd2 {[%clk 0:02:59]}  Be6 {[%clk 0:02:28]} 11. O-O {[%clk 0:02:58]}  a5 {[%clk 0:02:28]} 12. f3 {[%clk 0:02:40]}  a4 {[%clk 0:02:27]} 13. Rac1 {[%clk 0:02:35]}  Qa5 {[%clk 0:02:26]} 14. Rfd1 {[%clk 0:02:32]}  Rfc8 {[%clk 0:02:24]} 15. Nb5 {[%clk 0:02:31]}  Qxd2 {[%clk 0:02:15]} 16. Rxd2 {[%clk 0:02:27]}  d5 {[%clk 0:01:44]} 17. exd5 {[%clk 0:02:14]}  Nxd5 {[%clk 0:01:41]} 18. Bd4 {[%clk 0:01:34]}  Bh6 {[%clk 0:01:29]} 19. Rdc2 {[%clk 0:01:12]}  Bxc1 {[%clk 0:01:26]} 20. Rxc1 {[%clk 0:01:13]}  Nf4 {[%clk 0:01:20]} 21. Bf1 {[%clk 0:01:11]}  f6 {[%clk 0:01:09]} 22. g3 {[%clk 0:01:11]}  Bd7 {[%clk 0:00:53]} 23. Na7 {[%clk 0:01:04]}  Ne6 {[%clk 0:00:40]} 24. Nxc8 {[%clk 0:01:04]}  Nxd4 {[%clk 0:00:39]} 25. Nxe7+ {[%clk 0:01:04]}  Kf7 {[%clk 0:00:35]} 26. Nd5 {[%clk 0:01:04]}  Nxf3+ {[%clk 0:00:33]} 27. Kg2 {[%clk 0:00:54]}  Ne5 {[%clk 0:00:29]} 28. Kf2 {[%clk 0:00:35]}  Bc6 {[%clk 0:00:29]} 29. Ne3 {[%clk 0:00:35]}  Rd8 {[%clk 0:00:27]} 30. Be2 {[%clk 0:00:28]}  Rd2 {[%clk 0:00:25]} 31. Rc2 {[%clk 0:00:28]}  Nd3+ {[%clk 0:00:25]} 32. Kf1 {[%clk 0:00:28]}  Rxc2 {[%clk 0:00:25]} 33. Nxc2 {[%clk 0:00:28]}  Nxb2 {[%clk 0:00:26]} 34. Ke1 {[%clk 0:00:22]}  Be4 {[%clk 0:00:24]} 35. Kd2 {[%clk 0:00:20]}  a3 {[%clk 0:00:20]} 36. Nxa3 {[%clk 0:00:15]}  Na4 {[%clk 0:00:20]} 37. Nb5 {[%clk 0:00:13]}  Ke7 {[%clk 0:00:19]} 38. Nc3 {[%clk 0:00:12]}  Nxc3 {[%clk 0:00:17]} 39. Kxc3 {[%clk 0:00:13]}  Bc6 {[%clk 0:00:17]} 40. c5 {[%clk 0:00:12]}  Ke6 {[%clk 0:00:18]} 41. Kd4 {[%clk 0:00:12]}  g5 {[%clk 0:00:17]} 42. g4 {[%clk 0:00:10]}  f5 {[%clk 0:00:17]} 43. gxf5+ {[%clk 0:00:10]}  Kf6 {[%clk 0:00:15]} 44. Bg4 {[%clk 0:00:07]}  h6 {[%clk 0:00:14]} 45. a3 {[%clk 0:00:06]}  Bg2 {[%clk 0:00:13]} 46. Kc4 {[%clk 0:00:05]}  Bc6 {[%clk 0:00:13]} 47. Kd4 {[%clk 0:00:04]}  Bg2 {[%clk 0:00:12]} 48. a4 {[%clk 0:00:04]}  Bc6 {[%clk 0:00:12]} 49. a5 {[%clk 0:00:04]}  Bh1 {[%clk 0:00:09]} 50. Ke3 {[%clk 0:00:05]}  h5 {[%clk 0:00:03]} 51. Bxh5 {[%clk 0:00:04]}  Kxf5 {[%clk 0:00:02]} 52. Bf3 {[%clk 0:00:04]}  Bxf3 {[%clk 0:00:01]} 53. Kxf3 {[%clk 0:00:05]}  g4+ {[%clk 0:00:02]} 54. Kg3 {[%clk 0:00:05]}  Ke5 {[%clk 0:00:03]} 55. c6 {[%clk 0:00:04]}  bxc6 {[%clk 0:00:01]} 56. a6 {[%clk 0:00:05]} 1-0

[Event "December 5 Early 2023"]
[Site "https://www.chess.com"]
[Date "2023.12.05"]
[Round "1"]
[White "Burmakin, Evgeniy"]
[Black "Korchmar, Vasiliy"]
[Result "0-1"]
[Board "90"]
[TimeControl "180+1"]
[WhiteFideId "4163729"]
[BlackFideId "24131750"]
[WhiteElo "2440"]
[BlackElo "2762"]
[WhiteTeam "RUS"]
[BlackTeam "RUS"]
[WhiteClock "0:00:00"]
[BlackClock "0:01:18"]

1. e4 {[%clk 0:03:00]}  c5 {[%clk 0:03:00]} 2. Nc3 {[%clk 0:03:00]}  d6 {[%clk 0:03:00]} 3. Nf3 {[%clk 0:02:59]}  Nc6 {[%clk 0:03:00]} 4. d4 {[%clk 0:02:59]}  cxd4 {[%clk 0:03:01]} 5. Nxd4 {[%clk 0:02:59]}  Nf6 {[%clk 0:03:01]} 6. Be3 {[%clk 0:02:57]}  e5 {[%clk 0:03:01]} 7. Nb3 {[%clk 0:02:53]}  Be7 {[%clk 0:03:01]} 8. f3 {[%clk 0:02:53]}  O-O {[%clk 0:03:01]} 9. Qd2 {[%clk 0:02:52]}  Be6 {[%clk 0:03:01]} 10. O-O-O {[%clk 0:02:51]}  a5 {[%clk 0:03:01]} 11. Bb5 {[%clk 0:02:30]}  Nb4 {[%clk 0:03:00]} 12. a3 {[%clk 0:02:20]}  Qc7 {[%clk 0:03:01]} 13. Kb1 {[%clk 0:02:12]}  d5 {[%clk 0:02:49]} 14. exd5 {[%clk 0:01:53]}  Nbxd5 {[%clk 0:02:49]} 15. Nxd5 {[%clk 0:01:53]}  Nxd5 {[%clk 0:02:49]} 16. c4 {[%clk 0:01:28]}  Nxe3 {[%clk 0:02:40]} 17. Qxe3 {[%clk 0:01:28]}  a4 {[%clk 0:02:27]} 18. Nd2 {[%clk 0:01:23]}  Bc5 {[%clk 0:02:27]} 19. Qc3 {[%clk 0:01:13]}  Rfd8 {[%clk 0:02:18]} 20. Ne4 {[%clk 0:01:10]}  Bd4 {[%clk 0:02:18]} 21. Qc2 {[%clk 0:01:05]}  h6 {[%clk 0:02:05]} 22. Rhe1 {[%clk 0:00:57]}  Rac8 {[%clk 0:02:04]} 23. Qxa4 {[%clk 0:00:39]}  Qb6 {[%clk 0:02:04]} 24. Qb4 {[%clk 0:00:32]}  f5 {[%clk 0:01:57]} 25. Nc3 {[%clk 0:00:24]}  Kh7 {[%clk 0:01:48]} 26. Na4 {[%clk 0:00:20]}  Qc7 {[%clk 0:01:46]} 27. Rc1 {[%clk 0:00:16]}  Qf7 {[%clk 0:01:39]} 28. c5 {[%clk 0:00:12]}  Qg6 {[%clk 0:01:32]} 29. Ka1 {[%clk 0:00:09]}  Qxg2 {[%clk 0:01:32]} 30. Nb6 {[%clk 0:00:08]}  Rc7 {[%clk 0:01:26]} 31. Re2 {[%clk 0:00:05]}  Qxf3 {[%clk 0:01:25]} 32. Rce1 {[%clk 0:00:05]}  e4 {[%clk 0:01:23]} 33. Rc1 {[%clk 0:00:00]}  Bf6 {[%clk 0:01:18]} 0-1

[Event "December 5 Early 2023"]
[Site "https://www.chess.com"]
[Date "2023.12.05"]
[Round "1"]
[White "Wagner, Dennis"]
[Black "Begunov, Konstantin"]
[Result "1-0"]
[Board "91"]
[TimeControl "180+1"]
[WhiteFideId "24650684"]
[BlackFideId "4118510"]
[WhiteElo "2760"]
[BlackElo "2439"]
[WhiteTeam "GER"]
[BlackTeam "RUS"]
[WhiteClock "0:00:11"]
[BlackClock "0:00:00"]

1. Nf3 {[%clk 0:03:00]}  d5 {[%clk 0:02:59]} 2. e3 {[%clk 0:03:00]}  c6 {[%clk 0:03:00]} 3. c4 {[%clk 0:03:01]}  Nf6 {[%clk 0:03:00]} 4. Nc3 {[%clk 0:03:00]}  a6 {[%clk 0:02:59]} 5. b3 {[%clk 0:03:00]}  Bg4 {[%clk 0:02:58]} 6. h3 {[%clk 0:02:58]}  Bh5 {[%clk 0:02:58]} 7. Bb2 {[%clk 0:02:58]}  Nbd7 {[%clk 0:02:58]} 8. cxd5 {[%clk 0:02:47]}  Nxd5 {[%clk 0:02:42]} 9. Be2 {[%clk 0:02:38]}  Nxc3 {[%clk 0:02:30]} 10. Bxc3 {[%clk 0:02:36]}  Nf6 {[%clk 0:02:22]} 11. O-O {[%clk 0:02:30]}  e6 {[%clk 0:02:21]} 12. Qc2 {[%clk 0:02:20]}  Ba3 {[%clk 0:02:13]} 13. b4 {[%clk 0:02:14]}  a5 {[%clk 0:01:42]} 14. bxa5 {[%clk 0:02:14]}  O-O {[%clk 0:01:39]} 15. Qb3 {[%clk 0:02:14]}  Qe7 {[%clk 0:01:36]} 16. Rab1 {[%clk 0:02:09]}  Rfb8 {[%clk 0:01:32]} 17. Nd4 {[%clk 0:01:24]}  Bxe2 {[%clk 0:01:30]} 18. Nxe2 {[%clk 0:01:25]}  Nd5 {[%clk 0:01:31]} 19. Be5 {[%clk 0:01:18]}  Bd6 {[%clk 0:01:31]} 20. Bxd6 {[%clk 0:01:12]}  Qxd6 {[%clk 0:01:31]} 21. Rfc1 {[%clk 0:00:58]}  Rxa5 {[%clk 0:01:24]} 22. Nd4 {[%clk 0:00:59]}  Ra3 {[%clk 0:01:12]} 23. Qb2 {[%clk 0:00:54]}  Raa8 {[%clk 0:00:59]} 24. Rc4 {[%clk 0:00:53]}  g6 {[%clk 0:00:56]} 25. a4 {[%clk 0:00:54]}  c5 {[%clk 0:00:32]} 26. Nb5 {[%clk 0:00:48]}  Qe7 {[%clk 0:00:33]} 27. Qe5 {[%clk 0:00:46]}  b6 {[%clk 0:00:29]} 28. h4 {[%clk 0:00:34]}  Nb4 {[%clk 0:00:27]} 29. h5 {[%clk 0:00:30]}  f6 {[%clk 0:00:20]} 30. Qg3 {[%clk 0:00:29]}  Kg7 {[%clk 0:00:20]} 31. Nc3 {[%clk 0:00:22]}  Rd8 {[%clk 0:00:18]} 32. d4 {[%clk 0:00:16]}  Nd5 {[%clk 0:00:18]} 33. dxc5 {[%clk 0:00:15]}  bxc5 {[%clk 0:00:15]} 34. Ne4 {[%clk 0:00:13]}  Nb4 {[%clk 0:00:12]} 35. Nxc5 {[%clk 0:00:13]}  Nd5 {[%clk 0:00:07]} 36. Rb7 {[%clk 0:00:11]}  Nc7 {[%clk 0:00:00]} 37. Rxc7 {[%clk 0:00:11]} 1-0

[Event "December 5 Early 2023"]
[Site "https://www.chess.com"]
[Date "2023.12.05"]
[Round "1"]
[White "Can, Melih Kaan"]
[Black "Albornoz Cabrera, Carlos Daniel"]
[Result "0-1"]
[Board "92"]
[TimeControl "180+1"]
[WhiteFideId "6317383"]
[BlackFideId "3518736"]
[WhiteElo "2438"]
[BlackElo "2756"]
[WhiteTeam "TUR"]
[BlackTeam "CUB"]
[WhiteClock "0:00:04"]
[BlackClock "0:02:04"]

1. e4 {[%clk 0:03:00]}  c5 {[%clk 0:02:59]} 2. Nc3 {[%clk 0:03:00]}  Nc6 {[%clk 0:02:59]} 3. g3 {[%clk 0:03:00]}  g6 {[%clk 0:02:57]} 4. Bg2 {[%clk 0:02:59]}  Bg7 {[%clk 0:02:58]} 5. d3 {[%clk 0:03:00]}  e5 {[%clk 0:02:58]} 6. f4 {[%clk 0:02:32]}  d6 {[%clk 0:02:57]} 7. Nge2 {[%clk 0:02:17]}  Nge7 {[%clk 0:02:57]} 8. O-O {[%clk 0:02:17]}  O-O {[%clk 0:02:57]} 9. Be3 {[%clk 0:02:14]}  Nd4 {[%clk 0:02:57]} 10. Nd5 {[%clk 0:02:08]}  Nxd5 {[%clk 0:02:57]} 11. exd5 {[%clk 0:02:08]}  Nxe2+ {[%clk 0:02:56]} 12. Qxe2 {[%clk 0:02:09]}  exf4 {[%clk 0:02:57]} 13. Bxf4 {[%clk 0:02:05]}  Bxb2 {[%clk 0:02:56]} 14. Rab1 {[%clk 0:02:03]}  Bd4+ {[%clk 0:02:54]} 15. Kh1 {[%clk 0:02:02]}  b6 {[%clk 0:02:55]} 16. Qd2 {[%clk 0:01:44]}  Bb7 {[%clk 0:02:46]} 17. Bg5 {[%clk 0:01:26]}  Qd7 {[%clk 0:02:42]} 18. h4 {[%clk 0:00:48]}  Qg4 {[%clk 0:02:29]} 19. Bf4 {[%clk 0:00:13]}  Rae8 {[%clk 0:02:24]} 20. Bxd6 {[%clk 0:00:12]}  Re2 {[%clk 0:02:20]} 21. Qf4 {[%clk 0:00:10]}  Bxd5 {[%clk 0:02:05]} 22. Bxd5 {[%clk 0:00:04]}  Qh3# {[%clk 0:02:04]} 0-1

[Event "December 5 Early 2023"]
[Site "https://www.chess.com"]
[Date "2023.12.05"]
[Round "1"]
[White "Samunenkov, Ihor"]
[Black "Swicarz, Maciej"]
[Result "1-0"]
[Board "93"]
[TimeControl "180+1"]
[WhiteFideId "14187086"]
[BlackFideId "1113585"]
[WhiteElo "2756"]
[BlackElo "2437"]
[WhiteTeam "UKR"]
[BlackTeam "POL"]
[WhiteClock "0:00:33"]
[BlackClock "0:00:13"]

1. d4 {[%clk 0:03:00]}  Nf6 {[%clk 0:02:59]} 2. c4 {[%clk 0:03:00]}  e6 {[%clk 0:02:59]} 3. Nf3 {[%clk 0:03:00]}  b6 {[%clk 0:02:54]} 4. g3 {[%clk 0:03:00]}  Bb7 {[%clk 0:02:53]} 5. Bg2 {[%clk 0:03:00]}  Bb4+ {[%clk 0:02:52]} 6. Bd2 {[%clk 0:02:59]}  Bxd2+ {[%clk 0:02:51]} 7. Qxd2 {[%clk 0:03:00]}  O-O {[%clk 0:02:51]} 8. O-O {[%clk 0:03:00]}  d6 {[%clk 0:02:48]} 9. Rd1 {[%clk 0:02:56]}  Nbd7 {[%clk 0:02:48]} 10. Qc2 {[%clk 0:02:52]}  Qe7 {[%clk 0:02:44]} 11. Nc3 {[%clk 0:02:51]}  e5 {[%clk 0:02:42]} 12. e4 {[%clk 0:02:43]}  Rfe8 {[%clk 0:02:29]} 13. Re1 {[%clk 0:02:19]}  a5 {[%clk 0:02:25]} 14. b3 {[%clk 0:02:14]}  Rac8 {[%clk 0:02:21]} 15. Rad1 {[%clk 0:02:13]}  h6 {[%clk 0:02:20]} 16. Nh4 {[%clk 0:01:51]}  g6 {[%clk 0:02:15]} 17. Nf3 {[%clk 0:01:38]}  Kg7 {[%clk 0:02:13]} 18. Bh3 {[%clk 0:01:34]}  Rcd8 {[%clk 0:02:12]} 19. Nd5 {[%clk 0:01:32]}  Nxd5 {[%clk 0:02:03]} 20. cxd5 {[%clk 0:01:33]}  Rc8 {[%clk 0:01:35]} 21. dxe5 {[%clk 0:01:32]}  dxe5 {[%clk 0:01:34]} 22. Qc3 {[%clk 0:01:32]}  f6 {[%clk 0:01:29]} 23. Rd2 {[%clk 0:01:25]}  Qd6 {[%clk 0:01:03]} 24. Red1 {[%clk 0:01:17]}  Rcd8 {[%clk 0:00:58]} 25. Nh4 {[%clk 0:01:06]}  Nc5 {[%clk 0:00:56]} 26. Bf5 {[%clk 0:01:06]}  g5 {[%clk 0:00:47]} 27. Ng2 {[%clk 0:01:06]}  Bc8 {[%clk 0:00:47]} 28. Ne3 {[%clk 0:01:04]}  Kf7 {[%clk 0:00:41]} 29. Bxc8 {[%clk 0:00:55]}  Rxc8 {[%clk 0:00:41]} 30. Nf5 {[%clk 0:00:53]}  Qf8 {[%clk 0:00:41]} 31. d6 {[%clk 0:00:51]}  Red8 {[%clk 0:00:23]} 32. Qc4+ {[%clk 0:00:34]}  Ke8 {[%clk 0:00:19]} 33. d7+ {[%clk 0:00:33]}  Rxd7 {[%clk 0:00:13]} 34. Rxd7 {[%clk 0:00:33]} 1-0

[Event "December 5 Early 2023"]
[Site "https://www.chess.com"]
[Date "2023.12.05"]
[Round "1"]
[White "Mestnikov, Aisen"]
[Black "Wagh Suyog"]
[Result "0-1"]
[Board "94"]
[TimeControl "180+1"]
[WhiteFideId "34130117"]
[BlackFideId "25071688"]
[WhiteElo "2431"]
[BlackElo "2756"]
[WhiteTeam "RUS"]
[BlackTeam "IND"]
[WhiteClock "0:00:01"]
[BlackClock "0:00:14"]

1. d4 {[%clk 0:02:58]}  Nf6 {[%clk 0:02:58]} 2. c4 {[%clk 0:02:58]}  e6 {[%clk 0:02:58]} 3. Nf3 {[%clk 0:02:58]}  d5 {[%clk 0:02:57]} 4. g3 {[%clk 0:02:58]}  Bb4+ {[%clk 0:02:56]} 5. Bd2 {[%clk 0:02:58]}  Be7 {[%clk 0:02:56]} 6. Bg2 {[%clk 0:02:58]}  O-O {[%clk 0:02:56]} 7. Qc2 {[%clk 0:02:58]}  c6 {[%clk 0:02:56]} 8. O-O {[%clk 0:02:57]}  b6 {[%clk 0:02:56]} 9. Nc3 {[%clk 0:02:57]}  Ba6 {[%clk 0:02:39]} 10. b3 {[%clk 0:02:54]}  dxc4 {[%clk 0:02:30]} 11. Rfd1 {[%clk 0:02:54]}  Nbd7 {[%clk 0:02:26]} 12. Bf4 {[%clk 0:02:52]}  Nd5 {[%clk 0:02:21]} 13. Ne5 {[%clk 0:02:46]}  Nxe5 {[%clk 0:02:10]} 14. dxe5 {[%clk 0:02:43]}  Qc7 {[%clk 0:01:55]} 15. bxc4 {[%clk 0:01:59]}  Bxc4 {[%clk 0:01:47]} 16. Nxd5 {[%clk 0:01:41]}  cxd5 {[%clk 0:01:41]} 17. e4 {[%clk 0:01:40]}  d4 {[%clk 0:01:13]} 18. Rxd4 {[%clk 0:01:38]}  b5 {[%clk 0:01:12]} 19. Rad1 {[%clk 0:01:35]}  Rfd8 {[%clk 0:01:05]} 20. Rd6 {[%clk 0:01:06]}  g5 {[%clk 0:01:04]} 21. Rxd8+ {[%clk 0:01:05]}  Rxd8 {[%clk 0:01:03]} 22. Rxd8+ {[%clk 0:01:04]}  Bxd8 {[%clk 0:00:56]} 23. Be3 {[%clk 0:01:05]}  Qxe5 {[%clk 0:00:57]} 24. Qd1 {[%clk 0:00:35]}  Qc7 {[%clk 0:00:48]} 25. Bxa7 {[%clk 0:00:31]}  Bxa2 {[%clk 0:00:44]} 26. Bd4 {[%clk 0:00:12]}  Qd7 {[%clk 0:00:36]} 27. Qd2 {[%clk 0:00:09]}  Bc4 {[%clk 0:00:31]} 28. Qc3 {[%clk 0:00:07]}  Ba5 {[%clk 0:00:24]} 29. Qa1 {[%clk 0:00:03]}  Bb3 {[%clk 0:00:14]} 30. Be3 {[%clk 0:00:02]}  Qd1+ {[%clk 0:00:12]} 31. Qxd1 {[%clk 0:00:02]}  Bxd1 {[%clk 0:00:13]} 32. Bxg5 {[%clk 0:00:03]}  Bc3 {[%clk 0:00:12]} 33. Bc1 {[%clk 0:00:02]}  b4 {[%clk 0:00:12]} 34. Bf1 {[%clk 0:00:02]}  b3 {[%clk 0:00:12]} 35. Bd3 {[%clk 0:00:03]}  Kg7 {[%clk 0:00:10]} 36. Bb1 {[%clk 0:00:03]}  Kf6 {[%clk 0:00:10]} 37. f4 {[%clk 0:00:03]}  Ke7 {[%clk 0:00:10]} 38. Kf2 {[%clk 0:00:03]}  Kd6 {[%clk 0:00:10]} 39. h3 {[%clk 0:00:02]}  Kc5 {[%clk 0:00:10]} 40. g4 {[%clk 0:00:03]}  Kc4 {[%clk 0:00:10]} 41. Ke3 {[%clk 0:00:03]}  b2 {[%clk 0:00:08]} 42. Bd2 {[%clk 0:00:02]}  Kb3 {[%clk 0:00:08]} 43. Bxc3 {[%clk 0:00:02]}  Kxc3 {[%clk 0:00:08]} 44. e5 {[%clk 0:00:03]}  Bc2 {[%clk 0:00:08]} 45. Ba2 {[%clk 0:00:03]}  b1=Q {[%clk 0:00:09]} 46. Bxb1 {[%clk 0:00:03]}  Bxb1 {[%clk 0:00:10]} 47. f5 {[%clk 0:00:03]}  exf5 {[%clk 0:00:10]} 48. Kf4 {[%clk 0:00:03]}  fxg4 {[%clk 0:00:10]} 49. hxg4 {[%clk 0:00:03]}  Kd4 {[%clk 0:00:10]} 50. g5 {[%clk 0:00:03]}  Bg6 {[%clk 0:00:11]} 51. Kg4 {[%clk 0:00:02]}  Kxe5 {[%clk 0:00:11]} 52. Kh4 {[%clk 0:00:03]}  Kf5 {[%clk 0:00:12]} 53. Kg3 {[%clk 0:00:03]}  Kxg5 {[%clk 0:00:13]} 54. Kh3 {[%clk 0:00:01]}  f5 {[%clk 0:00:14]} 0-1

[Event "December 5 Early 2023"]
[Site "https://www.chess.com"]
[Date "2023.12.05"]
[Round "1"]
[White "Sokolovsky, Yahli"]
[Black "Kovalyov, Eduard"]
[Result "1-0"]
[Board "95"]
[TimeControl "180+1"]
[WhiteFideId "2820242"]
[BlackFideId "14118033"]
[WhiteElo "2753"]
[BlackElo "2430"]
[WhiteTeam "ISR"]
[BlackTeam "UKR"]
[WhiteClock "0:00:11"]
[BlackClock "0:00:00"]

1. b3 {[%clk 0:03:00]}  e5 {[%clk 0:02:45]} 2. Bb2 {[%clk 0:03:01]}  Nc6 {[%clk 0:02:45]} 3. e3 {[%clk 0:03:02]}  Nf6 {[%clk 0:02:46]} 4. Nf3 {[%clk 0:03:01]}  e4 {[%clk 0:02:42]} 5. Nd4 {[%clk 0:03:01]}  d5 {[%clk 0:02:39]} 6. c4 {[%clk 0:02:59]}  Be7 {[%clk 0:02:33]} 7. cxd5 {[%clk 0:02:54]}  Nxd5 {[%clk 0:02:33]} 8. Nxc6 {[%clk 0:02:54]}  bxc6 {[%clk 0:02:29]} 9. Bxg7 {[%clk 0:02:54]}  Bf6 {[%clk 0:02:30]} 10. Bxh8 {[%clk 0:02:33]}  Bxh8 {[%clk 0:02:29]} 11. Na3 {[%clk 0:02:34]}  Bxa1 {[%clk 0:01:42]} 12. Qxa1 {[%clk 0:02:34]}  Qf6 {[%clk 0:01:43]} 13. Qxf6 {[%clk 0:02:31]}  Nxf6 {[%clk 0:01:44]} 14. d4 {[%clk 0:02:10]}  a5 {[%clk 0:01:34]} 15. Bc4 {[%clk 0:02:00]}  a4 {[%clk 0:01:31]} 16. b4 {[%clk 0:02:00]}  Be6 {[%clk 0:01:17]} 17. Bxe6 {[%clk 0:01:41]}  fxe6 {[%clk 0:01:18]} 18. Nc4 {[%clk 0:01:41]}  a3 {[%clk 0:01:11]} 19. Kd2 {[%clk 0:01:11]}  Nd5 {[%clk 0:01:09]} 20. Rb1 {[%clk 0:01:10]}  Ra4 {[%clk 0:01:00]} 21. Kc2 {[%clk 0:01:11]}  Ke7 {[%clk 0:00:30]} 22. Nd2 {[%clk 0:01:11]}  Nf6 {[%clk 0:00:12]} 23. Kb3 {[%clk 0:01:06]}  Ra6 {[%clk 0:00:11]} 24. Rc1 {[%clk 0:01:02]}  Kd6 {[%clk 0:00:10]} 25. Rc5 {[%clk 0:01:00]}  Ke7 {[%clk 0:00:07]} 26. h3 {[%clk 0:00:56]}  Kd7 {[%clk 0:00:08]} 27. Nc4 {[%clk 0:00:50]}  Ke7 {[%clk 0:00:06]} 28. Nxa3 {[%clk 0:00:47]}  Nd5 {[%clk 0:00:05]} 29. Nc4 {[%clk 0:00:47]}  Kd7 {[%clk 0:00:03]} 30. a4 {[%clk 0:00:42]}  Ke7 {[%clk 0:00:03]} 31. Ne5 {[%clk 0:00:25]}  Kd6 {[%clk 0:00:02]} 32. a5 {[%clk 0:00:22]}  Ra7 {[%clk 0:00:01]} 33. Rxc6+ {[%clk 0:00:20]}  Ke7 {[%clk 0:00:02]} 34. Rc5 {[%clk 0:00:17]}  Rb7 {[%clk 0:00:02]} 35. b5 {[%clk 0:00:17]}  Kd6 {[%clk 0:00:02]} 36. a6 {[%clk 0:00:15]}  Ra7 {[%clk 0:00:03]} 37. Rc6+ {[%clk 0:00:14]}  Ke7 {[%clk 0:00:02]} 38. Nc4 {[%clk 0:00:14]}  Ra8 {[%clk 0:00:01]} 39. Rc5 {[%clk 0:00:13]}  Rb8 {[%clk 0:00:02]} 40. Ne5 {[%clk 0:00:13]}  Kd6 {[%clk 0:00:02]} 41. Nc6 {[%clk 0:00:11]}  Ra8 {[%clk 0:00:01]} 42. a7 {[%clk 0:00:11]}  Nb6 {[%clk 0:00:01]} 43. Rh5 {[%clk 0:00:10]}  Nc8 {[%clk 0:00:01]} 44. Rxh7 {[%clk 0:00:10]}  Nxa7 {[%clk 0:00:01]} 45. Nxa7 {[%clk 0:00:10]}  Rxa7 {[%clk 0:00:02]} 46. Rh4 {[%clk 0:00:09]}  Ra1 {[%clk 0:00:02]} 47. Rxe4 {[%clk 0:00:09]}  Rb1+ {[%clk 0:00:02]} 48. Kc4 {[%clk 0:00:09]}  Rc1+ {[%clk 0:00:03]} 49. Kd3 {[%clk 0:00:10]}  Rb1 {[%clk 0:00:02]} 50. g4 {[%clk 0:00:07]}  Rxb5 {[%clk 0:00:02]} 51. h4 {[%clk 0:00:08]}  Rb3+ {[%clk 0:00:03]} 52. Ke2 {[%clk 0:00:08]}  Rb2+ {[%clk 0:00:04]} 53. Kf3 {[%clk 0:00:09]}  Rb1 {[%clk 0:00:04]} 54. g5 {[%clk 0:00:08]}  Rh1 {[%clk 0:00:05]} 55. Rg4 {[%clk 0:00:09]}  Ke7 {[%clk 0:00:04]} 56. g6 {[%clk 0:00:09]}  Kf8 {[%clk 0:00:04]} 57. g7+ {[%clk 0:00:10]}  Kg8 {[%clk 0:00:05]} 58. Ke4 {[%clk 0:00:10]}  Rh2 {[%clk 0:00:04]} 59. f3 {[%clk 0:00:10]}  Ra2 {[%clk 0:00:04]} 60. Ke5 {[%clk 0:00:10]}  Ra6 {[%clk 0:00:03]} 61. e4 {[%clk 0:00:10]}  Rb6 {[%clk 0:00:02]} 62. f4 {[%clk 0:00:10]}  Ra6 {[%clk 0:00:02]} 63. h5 {[%clk 0:00:10]}  Ra5+ {[%clk 0:00:00]} 64. Kxe6 {[%clk 0:00:11]} 1-0